bitfinex-derivatives/quotes_ETHF0:USTF0_20250621
["timestamp","ask_amount","ask_price","bid_price","bid_amount"]
[1750469794284,3.2078,2422.7,2422.2,3.2078]
[1750469794487,0.82546,2422.5,2422.2,4.03333]
[1750469795591,0.82548,2422.4,2422.2,3.2078]
[1750469796185,0.82548,2422.4,2422.2,4.03334]
[1750469796393,0.82548,2422.4,2422.2,3.2078]
[1750469796592,0.82548,2422.4,2422.2,4.03332]
[1750469798485,1.3687,2422.6,2422.2,3.2078]
[1750469798693,0.8255,2422.3,2422.2,3.2078]
[1750469799291,0.82549,2422.4,2422.2,3.2078]
[1750469799792,1.3687,2422.6,2422.2,3.2078]
[1750469799994,0.8255,2422.3,2422.2,3.2078]
[1750469800198,0.82548,2422.4,2422.2,4.03334]
[1750469800888,0.8255,2422.3,2422.2,3.2078]
[1750469801195,0.8255,2422.3,2422.2,4.03334]
[1750469801598,0.8255,2422.3,2422.2,3.2078]
[1750469803298,0.8255,2422.3,2422.0,6.54297785]
[1750469803299,0.82561,2422.1,2422.0,6.785]
[1750469804196,0.82561,2422.0,2421.9,3.9004]
[1750469805296,0.82561,2422.0,2421.9,4.72604]
[1750469805494,0.82561,2422.0,2421.9,3.9004]
[1750469806801,0.82561,2422.0,2421.9,7.30899971]
[1750469808100,0.82559,2422.1,2421.9,7.30899971]
[1750469808291,0.82559,2422.1,2422.0,3.40859971]
[1750469812610,0.82561,2422.0,2421.9,0.6926]
[1750469812805,0.82561,2422.0,2421.9,3.9004]
[1750469813598,0.8256,2422.1,2421.9,3.9004]
[1750469813900,0.82561,2422.0,2421.9,3.9004]
[1750469814602,0.82561,2422.0,2421.9,7.30899971]
[1750469817902,0.82573,2421.7,2421.6,13.44839971]
[1750469818507,0.82573,2421.7,2421.6,6.61639971]
[1750469818707,1.3555,2421.9,2421.6,6.61639971]
[1750469819002,0.82571,2421.7,2421.6,6.61639971]
[1750469819401,0.8257,2421.8,2421.6,6.61639971]
[1750469819609,0.82571,2421.7,2421.6,3.2078]
[1750469820107,0.8257,2421.8,2421.6,3.2078]
[1750469820309,0.8257,2421.8,2421.7,3.40859971]
[1750469821802,2.18116,2421.9,2421.7,4.23430971]
[1750469822507,0.82566,2421.9,2421.7,4.23430971]
[1750469824613,0.82566,2421.9,2421.8,0.82567]
[1750469824810,0.82566,2421.9,2421.7,4.23428971]
[1750469825512,0.82566,2421.9,2421.7,3.40859971]
[1750469825908,0.82566,2421.9,2421.7,4.23428971]
[1750469826506,0.82566,2421.9,2421.8,0.82567]
[1750469827215,0.82563,2422.0,2421.8,0.82567]
[1750469827409,0.82563,2422.0,2421.9,3.40859971]
[1750469827608,0.8256,2422.1,2421.9,8.10853971]
[1750469827803,0.8256,2422.1,2422.0,3.40859971]
[1750469835114,0.82545,2422.5,2422.0,3.40859971]
[1750469835317,0.82544,2422.5,2422.4,3.40859971]
[1750469836921,0.82541,2422.6,2422.4,6.68455328]
[1750469837114,0.82541,2422.6,2422.5,6.61639971]
[1750469838222,1.3195,2422.7,2422.5,7.44183971]
[1750469838417,0.82535,2422.8,2422.6,2.45048357]
[1750469838619,0.82532,2422.9,2422.7,5.85908328]
[1750469838821,0.82532,2422.9,2422.8,3.40859971]
[1750469839221,2.2612037,2423.2,2422.8,7.44171971]
[1750469839421,0.82526,2423.1,2423.0,3.40859971]
[1750469840223,2.11026,2423.1,2423.0,3.40859971]
[1750469843029,0.8253,2422.9,2422.8,6.61639971]
[1750469844021,0.2443037,2423.2,2422.8,8.2078]
[1750469844239,3.2078,2423.7,2423.1,6.61639971]
[1750469844430,0.82513,2423.4,2423.3,3.40859971]
[1750469844631,0.82516,2423.3,2423.2,0.6465]
[1750469844833,2.11876,2423.3,2423.2,0.6465]
[1750469846329,0.82516,2423.3,2423.2,0.6465]
[1750469850242,1.3209,2423.5,2423.1,3.2078]
[1750469850444,0.82523,2423.1,2423.0,0.6541]
[1750469850639,0.82531,2422.9,2422.8,3.40859971]
[1750469851042,0.82529,2423.0,2422.8,3.40859971]
[1750469851249,2.0168,2423.2,2422.9,3.40859971]
[1750469851545,0.82527,2423.0,2422.9,3.40859971]
[1750469852141,2.0479,2423.1,2422.7,6.94325532]
[1750469852341,0.82533,2422.8,2422.7,3.53465561]
[1750469852542,0.82533,2422.8,2422.7,3.2078]
[1750469855042,0.82532,2422.9,2422.7,3.2078]
[1750469855243,0.82532,2422.9,2422.8,3.40859971]
[1750469855645,0.6868,2423.1,2422.8,3.40859971]
[1750469855853,1.51206,2423.1,2423.0,3.40859971]
[1750469856446,0.82532,2422.9,2422.8,3.40859971]
[1750469858848,0.8253,2422.9,2422.8,3.40859971]
[1750469859152,0.82533,2422.8,2422.7,3.2078]
[1750469859348,2.13243,2422.8,2422.7,3.2078]
[1750469859739,0.82542,2422.6,2422.4,3.2078]
[1750469859946,0.8255,2422.3,2422.2,3.74240328]
[1750469860148,0.82554,2422.2,2422.1,3.2078]
[1750469860846,0.82554,2422.2,2422.1,6.61639971]
[1750469861551,6.3501,2422.2,2421.6,3.22438922]
[1750469861754,6.61639971,2422.0,2421.3,4.11839971]
[1750469862054,0.82578,2421.5,2421.3,0.7098]
[1750469862357,2.6921,2421.9,2421.3,4.44555092]
[1750469862553,0.82577,2421.6,2421.3,4.44555092]
[1750469862754,2.6921,2421.9,2421.5,3.40859971]
[1750469862945,2.6921,2421.9,2421.3,4.24475121]
[1750469862946,0.82562,2422.0,2421.8,3.40859971]
[1750469863145,0.82562,2422.0,2421.9,0.7098]
[1750469864043,3.2078,2423.2,2422.2,0.82551]
[1750469864241,0.82537,2422.7,2422.4,3.40859971]
[1750469864444,3.2078,2422.8,2422.3,4.80379971]
[1750469864646,3.2078,2422.5,2422.3,4.80379971]
[1750469864846,3.2078,2422.5,2422.0,3.2078]
[1750469865054,0.82552,2422.3,2422.0,3.2078]
[1750469866155,0.82552,2422.3,2422.0,4.0334]
[1750469866353,3.2078,2422.8,2422.1,6.767]
[1750469866552,3.2078,2422.8,2422.3,6.54318827]
[1750469866857,3.2078,2422.8,2422.4,6.767]
[1750469867050,2.90708,2422.7,2422.4,7.4265]
[1750469867355,2.90708,2422.7,2422.4,8.25196]
[1750469867653,2.0817,2422.7,2422.4,8.25196]
[1750469867853,3.2078,2423.1,2422.5,0.82543]
[1750469868154,0.82534,2422.8,2422.5,0.82543]
[1750469868850,4.03306,2423.1,2422.4,8.7609]
[1750469869057,3.2078,2423.0,2422.5,3.2078]
[1750469869258,4.6072,2423.0,2422.5,4.03323]
[1750469869651,4.6072,2423.0,2422.5,3.2078]
[1750469870056,1.3994,2423.0,2422.6,0.82539]
[1750469870254,2.44276305,2424.2,2422.9,5.27104]
[1750469870551,0.82477,2424.5,2424.1,3.2078]
[1750469870752,3.2078,2424.7,2424.1,3.2078]
[1750469870955,0.82485,2424.3,2424.1,3.2078]
[1750469871258,1.3723,2424.2,2424.1,3.2078]
[1750469871454,2.19716,2424.2,2424.1,3.2078]
[1750469871644,1.3723,2424.2,2423.7,4.5776]
[1750469871852,1.3723,2424.2,2424.0,3.2078]
[1750469872246,0.82479,2424.5,2424.0,3.2078]
[1750469872648,2.19709,2424.5,2424.0,3.2078]
[1750469872860,0.82479,2424.4,2424.0,3.2078]
[1750469873057,2.20959,2424.4,2424.0,3.2078]
[1750469873551,1.3848,2424.4,2424.0,3.2078]
[1750469874055,0.82487,2424.2,2424.0,3.2078]
[1750469874459,0.82489,2424.1,2424.0,3.2078]
[1750469875461,0.651,2424.3,2423.7,4.5776]
[1750469875657,1.3848,2424.0,2423.7,3.9083]
[1750469875961,0.82499,2423.8,2423.7,3.2078]
[1750469877461,0.82513,2423.4,2423.3,4.5967]
[1750469877763,0.82513,2423.4,2423.3,3.8883]
[1750469882469,2.0355,2423.7,2423.3,3.8883]
[1750469882862,0.82513,2423.4,2423.3,3.8883]
[1750469884975,0.82513,2423.4,2423.3,3.2078]
[1750469889676,0.82512,2423.5,2423.3,9.75098827]
[1750469890372,0.82512,2423.5,2423.3,11.13118827]
[1750469890572,0.82512,2423.5,2423.4,0.68]
[1750469893073,0.82506,2423.6,2423.4,0.68]
[1750469893280,0.82506,2423.6,2423.5,7.21698827]
[1750469894376,0.82505,2423.7,2423.5,7.21698827]
[1750469894572,0.82505,2423.7,2423.6,3.2078]
[1750469898877,0.82506,2423.6,2423.5,7.21698827]
[1750469899068,0.82506,2423.6,2423.5,10.42478827]
[1750469900775,0.82506,2423.6,2423.5,3.8816]
[1750469901082,0.82506,2423.6,2423.5,9.72351523]
[1750469902681,34.66104005,2424.3,2423.5,9.72351523]
[1750469902682,2.44276305,2424.9,2423.5,15.53889765]
[1750469902886,1.3036,2424.5,2424.2,3.2078]
[1750469903072,0.82482,2424.3,2424.2,3.2078]
[1750469903277,7.79382,2424.3,2424.2,2.10188]
[1750469903478,43.79088366,2424.3,2423.4,2.44427073]
[1750469903784,3.40417005,2424.1,2423.4,5.84844078]
[1750469903975,2.29771361,2424.0,2423.5,3.2078]
[1750469904174,0.82503,2423.7,2423.5,3.8714]
[1750469904373,0.82503,2423.7,2423.5,4.5654]
[1750469904581,0.82501,2423.8,2423.6,3.40417005]
[1750469904781,1.9573,2424.0,2423.6,3.40417005]
[1750469904978,0.82503,2423.7,2423.5,4.5654]
[1750469905181,0.82506,2423.6,2423.5,4.5654]
[1750469905382,0.82505,2423.7,2423.5,4.5654]
[1750469905679,0.82506,2423.6,2423.5,4.5654]
[1750469906381,5.26936,2424.9,2423.5,19.93857005]
[1750469906686,0.82481,2424.4,2424.3,3.2078]
[1750469907289,7.79381,2424.4,2424.3,3.2078]
[1750469908180,5.82481,2424.4,2424.3,3.2078]
[1750469908374,0.82481,2424.4,2424.3,3.2078]
[1750469909375,2.78811,2424.4,2424.3,3.2078]
[1750469910883,5.06124,2425.3,2424.4,0.82477]
[1750469911077,0.82462,2424.9,2424.8,3.2078]
[1750469911587,1.3195,2425.2,2424.8,3.2078]
[1750469911588,8.7605,2425.2,2424.8,3.2078]
[1750469911779,0.82457,2425.1,2424.7,3.40417005]
[1750469911986,0.82457,2425.1,2425.0,3.2078]
[1750469912681,0.82457,2425.1,2424.7,3.40417005]
[1750469912682,0.8247,2424.7,2424.5,3.2078]
[1750469912987,7.441,2424.7,2424.2,3.2078]
[1750469913186,0.82477,2424.5,2424.2,3.2078]
[1750469913492,0.8248,2424.4,2424.2,3.2078]
[1750469913988,0.82477,2424.5,2424.2,3.2078]
[1750469914581,2.11417,2424.5,2424.2,3.2078]
[1750469915687,0.82482,2424.4,2424.2,3.2078]
[1750469915991,2.24012,2424.4,2424.2,3.2078]
[1750469916294,0.8248,2424.4,2424.2,3.2078]
[1750469916490,0.82477,2424.5,2424.2,3.2078]
[1750469916688,0.82477,2424.5,2424.3,0.7048]
[1750469917696,8.26477,2424.5,2424.3,0.7048]
[1750469918695,0.82479,2424.4,2424.3,0.7048]
[1750469920300,0.82482,2424.3,2424.2,3.2078]
[1750469921197,2.14072,2424.3,2424.2,3.2078]
[1750469922199,0.82482,2424.3,2424.2,3.2078]
[1750469922400,5.2695,2424.8,2424.2,3.2078]
[1750469922401,2.06086,2425.8,2424.3,2.06206]
[1750469922599,3.62976366,2425.3,2425.2,3.2078]
[1750469923299,11.06876366,2425.3,2425.2,3.2078]
[1750469923887,10.24428366,2425.3,2424.9,3.2078]
[1750469924092,0.6693,2425.2,2424.9,3.2078]
[1750469924292,0.82455,2425.1,2424.9,3.2078]
[1750469924493,2.80528366,2425.3,2425.0,6.53202977]
[1750469924701,3.62976366,2425.3,2425.2,3.2078]
[1750469925095,4.31756366,2425.3,2425.2,3.2078]
[1750469925702,5.63416366,2425.3,2425.2,3.2078]
[1750469926405,13.07216366,2425.3,2425.2,3.2078]
[1750469926704,0.82461,2425.0,2424.9,3.2078]
[1750469927204,3.2078,2426.1,2424.9,18.89300488]
[1750469927393,0.82438,2425.6,2425.5,3.2078]
[1750469928894,7.438,2425.7,2425.5,9.73982977]
[1750469929096,0.82438,2425.6,2425.5,9.73982977]
[1750469929297,0.82438,2425.6,2425.5,3.2078]
[1750469933007,2.19908,2425.6,2425.5,3.2078]
[1750469933603,8.26138,2425.6,2425.5,3.2078]
[1750469934900,0.82438,2425.6,2425.5,3.2078]
[1750469935198,8.26138,2425.6,2425.5,3.2078]
[1750469935709,0.82448,2425.3,2425.2,3.2078]
[1750469938605,0.82455,2425.1,2424.9,3.8973]
[1750469938811,2.06117,2425.4,2424.9,3.8973]
[1750469938812,8.26159,2425.0,2424.9,3.8973]
[1750469939305,8.26159,2425.0,2424.9,3.2078]
[1750469939511,0.82469,2424.7,2424.6,3.8866]
[1750469940814,0.82469,2424.7,2424.6,3.2078]
[1750469942203,0.82475,2424.5,2424.4,0.7018]
[1750469943213,0.6504,2424.9,2424.4,7.23382977]
[1750469943513,7.456,2424.8,2424.6,3.2078]
[1750469943713,0.82469,2424.7,2424.6,3.2078]
[1750469943910,2.70579,2425.3,2424.6,3.2078]
[1750469944117,0.82469,2424.7,2424.6,3.2078]
[1750469949018,0.82479,2424.4,2424.3,3.2078]
[1750469949220,0.82489,2424.1,2424.0,1.3262]
[1750469950520,0.82489,2424.1,2424.0,0.6638]
[1750469953621,0.82492,2424.0,2423.9,3.2078]
[1750469954318,8.28192,2424.0,2423.9,3.2078]
[1750469958722,9.57742,2424.0,2423.9,3.2078]
[1750469961325,10.81489,2424.0,2423.6,3.2078]
[1750469961626,0.82503,2423.7,2423.6,3.2078]
[1750469968233,0.8251,2423.5,2423.4,0.6624]
[1750469970432,0.82513,2423.4,2423.3,3.8551]
[1750469977535,8.8116,2423.6,2423.1,0.7101]
[1750469977536,0.8252,2423.2,2423.1,0.7101]
[1750469977736,0.8252,2423.2,2423.1,1.4154]
[1750469978326,8.0402,2423.2,2423.1,1.4154]
[1750469979437,0.6756,2423.7,2423.1,4.82068846]
[1750469979639,0.82516,2423.4,2423.3,3.40528846]
[1750469980741,7.216,2423.4,2423.3,3.40528846]
[1750469981144,7.216,2423.4,2423.3,4.68548846]
[1750469981442,7.216,2423.4,2423.3,7.89328846]
[1750469981639,0.82509,2423.6,2423.3,13.71844846]
[1750469981943,0.82509,2423.6,2423.5,3.40528846]
[1750469983044,0.82504,2423.7,2423.5,3.40528846]
[1750469983243,0.82504,2423.7,2423.6,5.2756]
[1750469983438,0.82504,2423.7,2423.6,5.9583]
[1750469983943,8.04101,2423.8,2423.6,5.9583]
[1750469984134,0.6877,2425.3,2423.9,3.2078]
[1750469984337,0.82455,2425.1,2425.0,3.40528846]
[1750469984531,0.6877,2425.3,2424.7,3.2078]
[1750469984732,0.82465,2424.8,2424.7,3.2078]
[1750469985234,0.82464,2424.9,2424.7,3.2078]
[1750469985837,8.0406,2425.0,2424.8,3.40528846]
[1750469986030,0.82462,2424.9,2424.8,3.40528846]
[1750469986433,0.8246,2425.0,2424.8,3.40528846]
[1750469986634,8.0396,2425.0,2424.8,3.40528846]
[1750469986830,0.82462,2424.9,2424.7,4.4873]
[1750469987841,8.0396,2425.0,2424.7,4.4873]
[1750469988242,7.215,2425.0,2424.7,4.4873]
[1750469988444,8.03959,2425.0,2424.8,1.2795]
[1750469988643,0.82462,2424.9,2424.8,1.2795]
[1750469991350,8.03959,2425.0,2424.8,7.80908588]
[1750469991946,0.82462,2424.9,2424.8,7.80908588]
[1750469992138,7.215,2425.0,2424.7,3.2078]
[1750469992345,0.82465,2424.8,2424.7,3.2078]
[1750469992745,2.06113,2425.4,2424.7,3.2078]
[1750469992951,0.82445,2425.4,2425.3,6.52958588]
[1750469993354,7.8852,2425.8,2425.1,9.31858588]
[1750469993549,0.82452,2425.2,2425.1,1.3938]
[1750469994156,0.8245,2425.3,2425.1,1.3938]
[1750469994659,0.82452,2425.2,2425.1,2.789]
[1750469995047,0.8245,2425.3,2425.1,2.789]
[1750469995247,0.82452,2425.2,2425.1,2.789]
[1750469995950,6.4648174,2427.0,2425.1,69.44479111]
[1750469996153,7.24068,2427.3,2426.4,3.2078]
[1750469996353,0.82402,2426.7,2426.4,3.2078]
[1750469996541,0.82402,2426.7,2426.4,5.2426]
[1750469997349,0.82408,2426.5,2426.4,3.2078]
[1750469999757,0.82402,2426.7,2426.4,3.2078]
[1750470000158,7.211,2426.8,2426.5,1.3493]
[1750470000360,0.82402,2426.7,2426.5,1.3493]
[1750470000554,7.4553037,2427.1,2426.5,7.87888588]
[1750470000753,0.82391,2427.0,2426.9,3.2078]
[1750470001348,0.82391,2427.0,2426.9,2.26815]
[1750470001560,10.906,2427.0,2426.3,3.2078]
[1750470001755,3.2078,2426.7,2426.0,10.41228588]
[1750470001955,0.82421,2426.1,2426.0,10.41228588]
[1750470002459,0.82421,2426.1,2426.0,3.8827]
[1750470002655,8.538,2426.6,2426.0,3.8827]
[1750470002955,0.8242,2426.2,2426.0,3.8827]
[1750470004658,0.82417,2426.3,2426.1,6.52958588]
[1750470004854,0.82417,2426.3,2426.2,1.3473]
[1750470005061,7.313,2426.8,2426.1,6.52958588]
[1750470005261,7.313,2426.8,2426.3,3.2078]
[1750470005262,0.82414,2426.4,2426.3,3.2078]
[1750470006555,4.578,2427.0,2426.3,3.2078]
[1750470006758,0.8241,2426.5,2426.3,3.2078]
[1750470007966,0.82411,2426.4,2426.3,3.2078]
[1750470012061,1.47081,2426.4,2426.3,3.2078]
[1750470012967,2.13301,2426.4,2426.3,3.2078]
[1750470018078,0.82421,2426.1,2426.0,3.8827]
[1750470024982,0.82421,2426.1,2426.0,7.27979041]
[1750470026279,0.82421,2426.1,2426.0,9.70964506]
[1750470029980,0.82421,2426.1,2426.0,6.60489041]
[1750470033377,0.82421,2426.1,2426.0,3.2078]
[1750470035090,7.92021,2426.1,2426.0,3.2078]
[1750470039585,7.92021,2426.1,2425.8,2.42985465]
[1750470039586,0.82428,2425.9,2425.8,2.42985465]
[1750470039791,0.82431,2425.8,2425.7,2.42985465]
[1750470040088,0.82431,2425.8,2425.7,5.82694506]
[1750470041996,0.8243,2425.9,2425.7,5.82694506]
[1750470042497,0.82426,2426.0,2425.8,2.42985465]
[1750470042692,0.82426,2426.0,2425.9,3.39709041]
[1750470042891,0.82426,2426.0,2425.9,5.44949041]
[1750470043187,0.82423,2426.1,2425.9,5.44949041]
[1750470043391,0.82423,2426.1,2426.0,3.39709041]
[1750470045491,0.82421,2426.1,2426.0,3.39709041]
[1750470045792,7.9202,2426.2,2426.0,3.39709041]
[1750470045994,0.82421,2426.1,2426.0,3.39709041]
[1750470046795,0.82396,2426.9,2426.5,0.82405]
[1750470046997,0.82396,2426.9,2426.8,6.60489041]
[1750470047198,0.2443037,2427.1,2426.8,6.60489041]
[1750470047392,0.2443037,2427.1,2427.0,3.39709041]
[1750470047893,0.2443037,2427.1,2427.0,4.71949041]
[1750470048999,0.82375,2427.5,2427.0,9.71949041]
[1750470049197,0.82375,2427.5,2427.3,3.39709041]
[1750470049789,3.2078,2427.6,2427.2,0.6566]
[1750470049790,0.82378,2427.4,2427.2,0.6566]
[1750470050496,0.82376,2427.5,2427.2,2.0578]
[1750470050799,3.2078,2427.6,2427.3,1.4012]
[1750470051002,0.82374,2427.5,2427.3,1.4012]
[1750470051795,3.2078,2427.6,2427.3,1.4012]
[1750470052198,3.2078,2428.3,2427.7,0.82365]
[1750470052496,3.39709041,2427.9,2427.5,3.2078]
[1750470052695,3.39709041,2427.9,2427.4,1.4013]
[1750470052891,6.06799041,2427.9,2427.4,1.4013]
[1750470053091,0.82373,2427.6,2427.5,3.2078]
[1750470053299,0.8237,2427.6,2427.5,3.2078]
[1750470054499,0.8237,2427.7,2427.5,3.2078]
[1750470055200,0.6443,2427.9,2427.5,3.2078]
[1750470055401,3.2078,2428.0,2427.6,3.39709041]
[1750470055704,0.8237,2427.6,2427.5,4.5771]
[1750470056104,0.82365,2427.8,2427.5,4.5771]
[1750470056601,0.82365,2427.8,2427.6,3.39709041]
[1750470056796,5.45578041,2428.3,2427.6,4.71949041]
[1750470056797,0.82362,2427.9,2427.6,4.71949041]
[1750470057003,0.82357,2428.0,2427.8,6.60489041]
[1750470057204,0.82356,2428.1,2427.8,6.60489041]
[1750470057505,0.6875,2428.3,2427.8,6.60489041]
[1750470057506,0.6875,2428.3,2427.9,0.7055]
[1750470057706,0.82355,2428.1,2428.0,0.7024]
[1750470058307,4.08459041,2428.3,2427.8,3.2078]
[1750470058602,0.82359,2428.0,2427.8,3.2078]
[1750470058903,0.82359,2428.0,2427.8,6.60489041]
[1750470059297,9.0652,2428.3,2427.8,3.2078]
[1750470059498,0.8236,2427.9,2427.8,3.2078]
[1750470066108,11.09393,2428.3,2427.8,6.60489041]
[1750470066109,0.6875,2428.3,2427.8,6.60489041]
[1750470066407,0.8236,2427.9,2427.8,6.60489041]
[1750470066796,0.8236,2427.9,2427.8,3.2078]
[1750470068205,1.3882,2428.2,2427.8,3.2078]
[1750470068410,0.8236,2427.9,2427.8,3.2078]
[1750470071808,2.05866,2428.4,2427.8,6.60489041]
[1750470072010,0.6667,2428.2,2428.1,3.2078]
[1750470072510,1.4902,2428.2,2428.1,3.2078]
[1750470078212,0.82357,2428.0,2427.9,0.6905]
[1750470079415,0.82356,2428.1,2427.9,0.6905]
[1750470079612,0.6667,2428.2,2427.9,4.08759041]
[1750470079816,0.82357,2428.0,2427.9,4.08759041]
[1750470080720,0.82357,2428.0,2427.9,0.6905]
[1750470081718,0.82357,2428.0,2427.9,3.12932553]
[1750470082317,0.82357,2428.0,2427.9,6.52641594]
[1750470082516,0.82357,2428.0,2427.9,0.6905]
[1750470082823,4.06379041,2428.2,2427.8,5.6422531]
[1750470082824,0.8236,2427.9,2427.8,5.6422531]
[1750470084120,0.8236,2427.9,2427.8,3.2078]
[1750470091226,0.8236,2428.0,2427.8,3.2078]
[1750470091429,0.8236,2427.9,2427.8,3.2078]
[1750470092432,0.82367,2427.7,2427.6,2.43837227]
[1750470092627,0.82367,2427.7,2427.5,1.62537336]
[1750470092628,0.8237,2427.6,2427.5,1.62537336]
[1750470092824,2.1286,2427.6,2427.5,1.62537336]
[1750470093734,9.5127,2427.6,2427.1,2.43837227]
[1750470093931,0.82384,2427.2,2427.1,2.43837227]
[1750470094124,2.44276305,2428.2,2427.1,12.062]
[1750470094435,0.82361,2427.9,2427.7,5.83178723]
[1750470094632,0.82361,2427.9,2427.8,0.6556]
[1750470094826,0.82361,2427.9,2427.8,3.09029682]
[1750470095332,0.82358,2428.0,2427.8,3.09029682]
[1750470095533,0.8236,2427.9,2427.8,3.09029682]
[1750470096533,0.8236,2427.9,2427.8,2.43469682]
[1750470096932,0.8236,2427.9,2427.8,5.64249682]
[1750470100139,0.8236,2427.9,2427.8,3.2078]
[1750470100640,2.7901,2427.9,2427.8,3.2078]
[1750470101634,0.6784,2427.9,2427.8,3.2078]
[1750470101932,8.536,2427.9,2427.8,6.28379682]
[1750470104237,2.05834,2428.7,2427.8,11.28379682]
[1750470104544,0.8235,2428.2,2428.1,3.2078]
[1750470104841,15.43109041,2428.2,2427.8,5.64265428]
[1750470105039,0.8236,2427.9,2427.8,3.2078]
[1750470105943,1.3167,2428.1,2427.8,5.64322828]
[1750470106142,0.8236,2427.9,2427.8,5.64322828]
[1750470106643,0.8236,2427.9,2427.8,5.64328603]
[1750470108439,0.8236,2427.9,2427.8,3.2078]
[1750470108637,10.2418,2429.0,2427.8,15.2418]
[1750470108847,6.60489041,2428.7,2428.1,3.2078]
[1750470109139,0.8235,2428.2,2428.1,5.64255663]
[1750470109945,0.8235,2428.2,2428.1,3.2078]
[1750470110642,0.82353,2428.1,2428.0,2.43475663]
[1750470110944,0.82353,2428.1,2427.8,3.2078]
[1750470110945,0.82357,2428.0,2427.9,2.43475663]
[1750470111245,0.8236,2427.9,2427.8,5.64255663]
[1750470112936,2.44276305,2428.9,2427.8,14.85056467]
[1750470113138,0.977305,2428.8,2428.4,6.60489041]
[1750470113338,0.82334,2428.7,2428.5,2.43461327]
[1750470113643,0.82334,2428.7,2428.4,9.03950368]
[1750470114641,0.82337,2428.6,2428.4,9.03950368]
[1750470114943,0.82336,2428.6,2428.4,9.03950368]
[1750470115144,0.8234,2428.5,2428.4,3.2078]
[1750470115338,1.4627,2428.5,2428.4,3.2078]
[1750470116549,0.8234,2428.5,2428.4,6.60489041]
[1750470116751,0.82338,2428.6,2428.4,6.60489041]
[1750470116944,3.2078,2429.2,2429.1,0.82319]
[1750470117151,2.44276305,2430.3,2429.1,9.03950368]
[1750470117444,0.6973,2430.0,2429.6,3.2078]
[1750470117747,0.82299,2429.7,2429.6,3.2078]
[1750470118546,0.82298,2429.8,2429.6,6.60489041]
[1750470118746,8.0683,2430.0,2429.6,6.60489041]
[1750470118747,0.82299,2429.7,2429.6,6.60489041]
[1750470119852,3.2078,2430.1,2429.6,11.60489041]
[1750470120047,0.82294,2429.9,2429.7,4.76549041]
[1750470120238,0.82292,2430.0,2429.7,3.39709041]
[1750470120543,3.2078,2430.4,2429.9,4.22001041]
[1750470120742,3.2078,2430.7,2430.1,3.39709041]
[1750470120943,0.82281,2430.3,2430.0,2.0481]
[1750470121143,3.2078,2430.7,2430.0,2.0481]
[1750470121340,10.5778,2430.7,2430.0,2.0481]
[1750470121542,3.2078,2430.7,2430.2,3.2078]
[1750470121741,0.82279,2430.3,2430.2,3.2078]
[1750470121951,3.2078,2430.7,2430.2,3.2078]
[1750470122253,0.82279,2430.3,2430.2,3.2078]
[1750470122645,3.2078,2430.7,2430.2,3.2078]
[1750470122846,0.82289,2430.0,2429.9,3.2078]
[1750470123151,9.3942,2430.6,2429.9,3.2078]
[1750470123356,9.3942,2430.6,2430.2,3.2078]
[1750470123556,0.82289,2430.0,2429.9,3.2078]
[1750470128254,0.82287,2430.1,2429.9,3.2078]
[1750470128457,0.82289,2430.0,2429.9,3.2078]
[1750470129152,0.679,2430.5,2429.9,9.70877826]
[1750470129353,0.82285,2430.1,2430.0,1.3682]
[1750470130251,0.82284,2430.2,2430.0,1.3682]
[1750470130655,0.82285,2430.1,2430.0,1.3682]
[1750470130854,0.82277,2430.4,2430.0,1.3682]
[1750470131060,0.7038,2430.6,2430.2,3.2078]
[1750470131061,0.82279,2430.3,2430.2,3.2078]
[1750470131359,0.82279,2430.3,2430.2,4.576]
[1750470131955,0.82277,2430.4,2430.2,4.576]
[1750470132259,0.82277,2430.4,2430.3,1.3077]
[1750470132758,0.82275,2430.4,2430.3,1.3077]
[1750470132946,5.5084637,2431.1,2430.3,6.3077]
[1750470133149,0.82271,2430.6,2430.5,3.2078]
[1750470134052,0.82267,2430.7,2430.5,3.2078]
[1750470134355,0.82269,2430.6,2430.5,3.2078]
[1750470134551,0.2443037,2431.1,2430.5,17.07477826]
[1750470134756,0.82263,2430.8,2430.6,3.2078]
[1750470134951,7.6103037,2431.1,2430.6,3.2078]
[1750470135153,0.82264,2430.8,2430.6,3.2078]
[1750470135554,0.82265,2430.7,2430.6,3.2078]
[1750470135957,0.82264,2430.8,2430.6,3.2078]
[1750470136355,7.6103037,2431.1,2430.3,3.2078]
[1750470136356,2.05649,2430.9,2430.3,3.2078]
[1750470136558,3.2078,2430.5,2429.9,3.2078]
[1750470136861,0.82287,2430.1,2429.9,3.2078]
[1750470137061,2.0372,2430.4,2429.9,3.2078]
[1750470137265,0.82299,2429.7,2429.6,3.8508]
[1750470137559,0.82297,2429.8,2429.6,3.8508]
[1750470138154,0.82299,2429.7,2429.6,3.8508]
[1750470138460,0.82299,2429.7,2429.5,3.2078]
[1750470139361,0.82298,2429.8,2429.5,3.2078]
[1750470140057,0.82302,2429.6,2429.5,3.2078]
[1750470141055,0.82301,2429.7,2429.5,3.2078]
[1750470141855,1.50928,2429.8,2429.5,3.2078]
[1750470142463,0.82302,2429.6,2429.5,3.2078]
[1750470143755,2.23432,2429.6,2429.5,3.2078]
[1750470144557,0.82311,2429.4,2429.2,3.2078]
[1750470145161,7.366,2429.5,2429.2,3.2078]
[1750470145352,1.3967,2429.4,2429.2,3.2078]
[1750470145551,0.82312,2429.3,2429.2,3.2078]
[1750470145755,1.3967,2429.4,2428.9,3.2078]
[1750470145956,0.82322,2429.1,2428.9,3.2078]
[1750470146155,8.1902,2429.1,2428.9,3.2078]
[1750470146762,0.82323,2429.0,2428.9,3.2078]
[1750470149656,2.16233,2429.0,2428.9,3.2078]